fUSD/lending_fUSD_20240217
["ID","MTS","AMOUNT","RATE_DAILY","PERIOD"]
[314287540,1708157448989,-166.05101387,0.00048797,30]
[314287541,1708157448999,-179.021788,0.00048798,95]
[314287542,1708157449008,-166.99392,0.000488,4]
[314287543,1708157449018,-6982.39311,0.000488,2]
[314287544,1708157449027,-150.0,0.000488,7]
[314287545,1708157449036,-150.0,0.000488,7]
[314287546,1708157449045,-150.0,0.00048811,7]
[314287547,1708157449054,-150.0,0.00048816,2]
[314287548,1708157449064,-1865.0,0.00048816,2]
[314287549,1708157449074,-150.0,0.00048832,7]
[314287550,1708157449083,-150.0,0.00048848,7]
[314287551,1708157449093,-150.0,0.0004885,7]
[314287552,1708157449103,-342.12752312,0.00048855,7]
[314287553,1708157449112,-150.0,0.00048858,7]
[314287554,1708157449121,-150.0,0.00048859,7]
[314287555,1708157449131,-205.0,0.00048863,32]
[314287556,1708157449141,-150.0,0.0004887,7]
[314287557,1708157449150,-309.4868852,0.00048896,7]
[314287558,1708157449160,-153.62677801,0.000489,40]
[314287559,1708157449169,-811.02,0.00048904,2]
[314287560,1708157449178,-405.51,0.00048904,2]
[314287561,1708157449188,-810.18,0.00048904,2]
[314287562,1708157449198,-150.0,0.00048906,7]
[314287563,1708157449207,-300.0,0.00048907,7]
[314287564,1708157449216,-150.0,0.0004892,7]
[314287565,1708157449225,-150.0,0.00048941,7]
[314287566,1708157449236,-150.0,0.00048944,7]
[314287567,1708157449245,-663.1363543,0.00048964,2]
[314287568,1708157449255,-150.01,0.00048965,2]
[314287569,1708157449264,-3317.68767406,0.00048965,2]
[314287570,1708157449274,-1980.8108279,0.00048966,2]
[314287571,1708157449283,-61333.5875508,0.00048966,2]
[314287572,1708157449293,-2951669.96764465,0.00048975,8]
[314287573,1708157449303,-1295055.44702269,0.00048975,8]
[314287574,1708157449312,-2000.0,0.00048975,7]
[314287575,1708157449322,-200.0,0.00048975,7]
[314287576,1708157449331,-2000.0,0.00048975,7]
[314287577,1708157449340,-200.0,0.00048975,7]
[314287578,1708157449350,-200.0,0.00049,60]
[314287579,1708157449360,-300.0,0.00049,49]
[314287580,1708157449369,-9381.0,0.00049,30]
[314287581,1708157449378,-5000.0,0.00049,90]
[314287582,1708157449387,-5000.0,0.00049,90]
[314287583,1708157449396,-630000.0,0.00049,120]
[314287584,1708157449405,-1013.0,0.00049,7]
[314287585,1708157449414,-158.166395,0.00049003,30]
[314287586,1708157449423,-221.8667,0.00049003,30]
[314287587,1708157449433,-174.472826,0.00049003,30]
[314287588,1708157449443,-185.933349,0.00049003,30]
[314287589,1708157449453,-196.409247,0.00049003,30]
[314287590,1708157449462,-1500.0,0.00049005,7]
[314287591,1708157449471,-1308.35,0.00049041,7]
[314287592,1708157449480,-3566.0,0.00049112,120]
[314287593,1708157449490,-150.0,0.00049113,7]
[314287594,1708157449499,-173.021788,0.00049148,95]
[314287595,1708157449508,-1208.0,0.00049208,30]
[314287596,1708157449518,-539.50685175,0.00049315,30]
[314287597,1708157449527,-500.0,0.00049315,60]
[314287598,1708157449536,-500.0,0.00049315,60]
[314287599,1708157449545,-1005.42496678,0.00049315,2]
[314287600,1708157449554,-500.0,0.00049315,60]
[314287601,1708157449563,-515.44997744,0.00049315,60]
[314287602,1708157449572,-531.10718226,0.00049315,60]
[314287603,1708157449581,-500.0,0.00049315,60]
[314287604,1708157449590,-345.13476304,0.00049315,60]
[314287605,1708157449599,-739.89,0.00049315,60]
[314287606,1708157449608,-1025.71389737,0.00049315,7]
[314287607,1708157449617,-500.0,0.00049315,60]
[314287608,1708157449626,-1000.7444072,0.00049315,2]
[314287609,1708157449635,-532.94619241,0.00049315,60]
[314287610,1708157449644,-494.2555993,0.00049315,60]
[314287611,1708157449653,-517.58227991,0.00049315,60]
[314287612,1708157449759,-518.62396801,0.00049315,60]
[314287613,1708157449769,-500.0,0.00049315,60]
[314287614,1708157449778,-525.54881652,0.00049315,60]
[314287615,1708157449788,-500.0,0.00049315,60]
[314287616,1708157449797,-519.17862808,0.00049315,60]
[314287617,1708157449806,-503.07614817,0.00049315,60]
[314287618,1708157449815,-500.0,0.00049315,60]
[314287619,1708157449824,-500.0,0.00049315,60]
[314287620,1708157449833,-522.18703012,0.00049315,60]
[314287621,1708157449841,-527.55136183,0.00049315,60]
[314287622,1708157449850,-512.21867618,0.00049315,60]
[314287623,1708157449860,-500.0,0.00049315,2]
[314287624,1708157449868,-500.0,0.00049315,30]
[314287625,1708157449877,-500.0,0.00049315,2]
[314287626,1708157449886,-534.66889325,0.00049315,60]
[314287627,1708157449895,-524.56234278,0.00049315,60]
[314287628,1708157449904,-536.86482471,0.00049315,60]
[314287629,1708157449913,-526.781292,0.00049315,60]
[314287630,1708157449923,-536.73753223,0.00049315,60]
[314287631,1708157449933,-530.31688887,0.00049315,60]
[314287632,1708157449942,-500.0,0.00049315,60]
[314287633,1708157449951,-502.71281984,0.00049315,60]
[314287634,1708157449961,-538.82814425,0.00049315,60]
[314287635,1708157449971,-500.0,0.00049315,60]
[314287636,1708157449979,-510.70103441,0.00049315,60]
[314287637,1708157449989,-510.55731729,0.00049315,60]
[314287638,1708157449998,-532.99110301,0.00049315,60]
[314287639,1708157450008,-503.22170731,0.00049315,60]
[314287640,1708157450017,-503.16608839,0.00049315,60]
[314287641,1708157450027,-508.38441291,0.00049315,60]
[314287642,1708157450037,-500.0,0.00049315,60]
[314287643,1708157450046,-500.0,0.00049315,60]
[314287644,1708157450056,-500.0,0.00049315,60]
[314287645,1708157450066,-500.0,0.00049315,60]
[314287646,1708157450077,-160.05272854,0.00049315,60]
[314287647,1708157450086,-545.70110424,0.00049315,60]
[314287648,1708157450095,-500.0,0.00049315,60]
[314287649,1708157450105,-502.21977717,0.00049315,2]
[314287650,1708157450114,-500.0,0.00049315,60]
[314287651,1708157450123,-543.65870553,0.00049315,60]
[314287652,1708157450132,-500.0,0.00049315,2]
[314287653,1708157450142,-624.32200642,0.00049315,60]
[314287654,1708157450151,-534.55759218,0.00049315,60]
[314287655,1708157450161,-534.08277317,0.00049315,60]
[314287656,1708157450171,-564.38431962,0.00049315,60]
[314287657,1708157450181,-500.0,0.00049315,60]
[314287658,1708157450190,-503.48986001,0.00049315,60]
[314287659,1708157450200,-500.0,0.00049315,60]
[314287660,1708157450209,-500.0,0.00049315,60]
[314287661,1708157450218,-500.0,0.00049315,60]
[314287662,1708157450227,-500.0,0.00049315,60]
[314287663,1708157450237,-500.0,0.00049315,60]
[314287664,1708157450246,-500.0,0.00049315,60]
[314287665,1708157450256,-405.46857021,0.00049315,60]
[314287666,1708157450265,-500.0,0.00049315,60]
[314287667,1708157450274,-300.95615346,0.00049315,60]
[314287668,1708157450283,-391.01375888,0.00049315,60]
[314287669,1708157450293,-500.0,0.00049315,60]
[314287670,1708157450302,-500.0,0.00049315,60]
[314287671,1708157450311,-500.0,0.00049315,2]
[314287672,1708157450320,-500.0,0.00049315,60]
[314287673,1708157450329,-550.43784507,0.00049315,60]
[314287674,1708157450339,-500.0,0.00049315,60]
[314287675,1708157450348,-500.0,0.00049315,60]
[314287676,1708157450357,-500.0,0.00049315,60]
[314287677,1708157450366,-199.58004,0.00049315,2]
[314287678,1708157450376,-500.0,0.00049315,60]
[314287679,1708157450385,-500.0,0.00049315,60]
[314287680,1708157450394,-552.80298346,0.00049315,60]
[314287681,1708157450403,-500.0,0.00049315,60]
[314287682,1708157450412,-341.19224171,0.00049315,60]
[314287683,1708157450421,-541.85888393,0.00049315,60]
[314287684,1708157450430,-486.99638764,0.00049315,60]
[314287685,1708157450439,-500.0,0.00049315,60]
[314287686,1708157450448,-500.0,0.00049315,60]
[314287687,1708157450458,-500.0,0.00049315,60]
[314287688,1708157450467,-593.26721663,0.00049315,60]
[314287689,1708157450476,-510.82181382,0.00049315,60]
[314287690,1708157450486,-500.0,0.00049315,60]
[314287691,1708157450495,-500.0,0.00049315,60]
[314287692,1708157450504,-629.85,0.00049315,60]
[314287693,1708157450513,-563.18059403,0.00049315,60]
[314287694,1708157450522,-500.0,0.00049315,60]
[314287695,1708157450531,-500.0,0.00049315,60]
[314287696,1708157450540,-500.0,0.00049315,60]
[314287697,1708157450549,-541.96788447,0.00049315,60]
[314287698,1708157450558,-500.0,0.00049315,60]
[314287699,1708157450567,-561.12639382,0.00049315,60]
[314287700,1708157450577,-308.59535877,0.00049315,60]
[314287701,1708157450587,-500.0,0.00049315,60]
[314287702,1708157450595,-500.0,0.00049315,60]
[314287703,1708157450605,-500.0,0.00049315,60]
[314287704,1708157450614,-297.25573391,0.00049315,60]
[314287705,1708157450623,-500.0,0.00049315,60]
[314287706,1708157450632,-500.0,0.00049315,60]
[314287707,1708157450641,-500.0,0.00049315,60]
[314287708,1708157450650,-500.0,0.00049315,60]
[314287709,1708157450659,-500.0,0.00049315,60]
[314287710,1708157450668,-500.0,0.00049315,7]
[314287711,1708157450678,-392.36,0.00049315,60]
[314287712,1708157450687,-500.0,0.00049315,60]
[314287713,1708157450696,-500.0,0.00049315,2]
[314287714,1708157450705,-583.88,0.00049315,2]
[314287715,1708157450714,-618.81,0.00049315,60]
[314287716,1708157450723,-526.92,0.00049315,60]
[314287717,1708157450732,-500.0,0.00049315,60]
[314287718,1708157450742,-500.0,0.00049315,60]
[314287719,1708157450751,-500.0,0.00049315,60]
[314287720,1708157450760,-500.0,0.00049315,60]
[314287721,1708157450771,-524.89362049,0.00049315,60]
[314287722,1708157450781,-500.0,0.00049315,60]
[314287723,1708157450790,-548.30218861,0.00049315,60]
[314287724,1708157450799,-1028.76,0.00049315,2]
[314287725,1708157450808,-500.0,0.00049315,60]
[314287726,1708157450818,-157.32709944,0.00049315,7]
[314287727,1708157450827,-500.0,0.00049315,60]
[314287728,1708157450836,-500.0,0.00049315,60]
[314287729,1708157450846,-500.0,0.00049315,60]
[314287730,1708157450854,-269.40639238,0.00049315,120]
[314287731,1708157450864,-500.0,0.00049315,60]
[314287732,1708157450873,-500.0,0.00049315,60]
[314287733,1708157450882,-500.0,0.00049315,60]
[314287734,1708157450891,-500.0,0.00049315,60]
[314287735,1708157450900,-566.42358745,0.00049315,60]
[314287736,1708157450908,-500.0,0.00049315,60]
[314287737,1708157450918,-500.0,0.00049315,60]
[314287738,1708157450928,-500.0,0.00049315,60]
[314287739,1708157450939,-1000.0,0.00049315,7]
[314287740,1708157450948,-500.0,0.00049315,60]
[314287741,1708157450957,-555.44200631,0.00049315,60]
[314287742,1708157450966,-500.0,0.00049315,60]
[314287743,1708157450976,-530.46648344,0.00049315,60]
[314287744,1708157450987,-500.0,0.00049315,60]
[314287745,1708157450996,-500.0,0.00049315,60]
[314287746,1708157451006,-524.41389706,0.00049315,60]
[314287747,1708157451015,-500.0,0.00049315,60]
[314287748,1708157451024,-500.0,0.00049315,60]
[314287749,1708157451033,-500.0,0.00049315,60]
[314287750,1708157451042,-358.42557405,0.00049315,60]
[314287751,1708157451052,-393.12415034,0.00049315,60]
[314287752,1708157451061,-500.0,0.00049315,60]
[314287753,1708157451071,-624.61673098,0.00049315,60]
[314287754,1708157451081,-441.49723271,0.00049315,60]
[314287755,1708157451090,-500.0,0.00049315,60]
[314287756,1708157451100,-500.0,0.00049315,60]
[314287757,1708157451109,-500.0,0.00049315,60]
[314287758,1708157451118,-500.0,0.00049315,60]
[314287759,1708157451127,-568.11386735,0.00049315,60]
[314287760,1708157451137,-500.0,0.00049315,60]
[314287761,1708157451146,-500.0,0.00049315,60]
[314287762,1708157451155,-500.0,0.00049315,60]
[314287763,1708157451165,-500.0,0.00049315,60]
[314287764,1708157451175,-500.0,0.00049315,60]
[314287765,1708157451184,-1162.21,0.00049315,60]
[314287766,1708157451194,-500.0,0.00049315,60]
[314287767,1708157451203,-276.07901034,0.00049315,60]
[314287768,1708157451212,-500.0,0.00049315,60]
[314287769,1708157451222,-501.61823488,0.00049315,60]
[314287770,1708157451231,-150.0,0.00049315,60]
[314287771,1708157451241,-558.57814119,0.00049315,60]
[314287772,1708157451250,-500.0,0.00049315,60]
[314287773,1708157451259,-500.0,0.00049315,60]
[314287774,1708157451270,-572.48281566,0.00049315,60]
[314287775,1708157451279,-282.8206388,0.00049315,60]
[314287776,1708157451288,-574.88783736,0.00049315,60]
[314287777,1708157451298,-500.0,0.00049315,60]
[314287778,1708157451307,-500.0,0.00049315,60]
[314287779,1708157451316,-569.12898609,0.00049315,60]
[314287780,1708157451326,-512.15,0.00049315,60]
[314287781,1708157451335,-212.9669228,0.00049315,60]
[314287782,1708157451344,-1393.94,0.00049315,60]
[314287783,1708157451354,-500.0,0.00049315,60]
[314287784,1708157451364,-500.0,0.00049315,60]
[314287785,1708157451373,-280.03681728,0.00049315,60]
[314287786,1708157451382,-500.0,0.00049315,60]
[314287787,1708157451391,-553.06947301,0.00049315,60]
[314287788,1708157451400,-500.0,0.00049315,60]
[314287789,1708157451409,-500.0,0.00049315,60]
[314287790,1708157451418,-642.69094484,0.00049315,60]
[314287791,1708157451428,-500.0,0.00049315,60]
[314287792,1708157451438,-500.0,0.00049315,60]
[314287793,1708157451542,-502.45080842,0.00049315,60]
[314287794,1708157451552,-500.0,0.00049315,60]
[314287795,1708157451561,-500.0,0.00049315,60]
[314287796,1708157451570,-500.0,0.00049315,60]
[314287797,1708157451580,-500.0,0.00049315,60]
[314287798,1708157451589,-500.0,0.00049315,60]
[314287799,1708157451599,-500.0,0.00049315,60]
[314287800,1708157451608,-500.0,0.00049315,60]
[314287801,1708157451618,-500.0,0.00049315,60]
[314287802,1708157451627,-500.0,0.00049315,60]
[314287803,1708157451636,-500.0,0.00049315,60]
[314287804,1708157451645,-527.02637147,0.00049315,60]
[314287805,1708157451655,-500.0,0.00049315,60]
[314287806,1708157451664,-500.0,0.00049315,60]
[314287807,1708157451673,-500.0,0.00049315,60]
[314287808,1708157451683,-531.51104237,0.00049315,60]
[314287809,1708157451692,-717.72,0.00049315,60]
[314287810,1708157451701,-500.0,0.00049315,60]
[314287811,1708157451710,-536.61838355,0.00049315,60]
[314287812,1708157451719,-993.11,0.00049315,60]
[314287813,1708157451729,-548.65410803,0.00049315,60]
[314287814,1708157451738,-500.0,0.00049315,60]
[314287815,1708157451748,-531.34230761,0.00049315,60]
[314287816,1708157451757,-500.0,0.00049315,60]
[314287817,1708157451767,-521.18448768,0.00049315,60]
[314287818,1708157451777,-500.0,0.00049315,60]
[314287819,1708157451786,-548.81836257,0.00049315,60]
[314287820,1708157451796,-500.0,0.00049315,60]
[314287821,1708157451805,-488.70689803,0.00049315,60]
[314287822,1708157451814,-500.0,0.00049315,60]
[314287823,1708157451823,-500.0,0.00049315,60]
[314287824,1708157451832,-500.0,0.00049315,60]
[314287825,1708157451841,-566.11653482,0.00049315,60]
[314287826,1708157451850,-500.0,0.00049315,60]
[314287827,1708157451859,-500.0,0.00049315,60]
[314287828,1708157451868,-507.39890145,0.00049315,60]
[314287829,1708157451877,-500.0,0.00049315,60]
[314287830,1708157451887,-500.0,0.00049315,60]
[314287831,1708157451896,-500.0,0.00049315,60]
[314287832,1708157451905,-500.73,0.00049315,60]
[314287833,1708157451914,-500.0,0.00049315,60]
[314287834,1708157451924,-500.0,0.00049315,60]
[314287835,1708157451937,-500.0,0.00049315,60]
[314287836,1708157451946,-500.0,0.00049315,2]
[314287837,1708157451955,-500.0,0.00049315,60]
[314287838,1708157451964,-500.0,0.00049315,60]
[314287839,1708157451974,-535.20010004,0.00049315,60]
[314287840,1708157451983,-535.28667173,0.00049315,60]
[314287841,1708157451994,-506.4659255,0.00049315,60]
[314287842,1708157452003,-500.0,0.00049315,60]
[314287843,1708157452014,-519.69891865,0.00049315,7]
[314287844,1708157452024,-854.01,0.00049315,60]
[314287845,1708157452033,-515.47901637,0.00049315,60]
[314287846,1708157452042,-500.0,0.00049315,60]
[314287847,1708157452051,-522.39098309,0.00049315,60]
[314287848,1708157452060,-500.0,0.00049315,60]
[314287849,1708157452069,-500.0,0.00049315,60]
[314287850,1708157452078,-526.40752635,0.00049315,60]
[314287851,1708157452087,-500.0,0.00049315,60]
[314287852,1708157452096,-500.0,0.00049315,60]
[314287853,1708157452106,-500.0,0.00049315,60]
[314287854,1708157452115,-519.18415384,0.00049315,60]
[314287855,1708157452124,-500.0,0.00049315,60]
[314287856,1708157452133,-500.0,0.00049315,60]
[314287857,1708157452142,-525.13269746,0.00049315,60]
[314287858,1708157452152,-500.0,0.00049315,60]
[314287859,1708157452161,-500.0,0.00049315,60]
[314287860,1708157452170,-500.0,0.00049315,60]
[314287861,1708157452180,-500.0,0.00049315,60]
[314287862,1708157452189,-590.70851985,0.00049315,60]
[314287863,1708157452199,-285.93860935,0.00049315,60]
[314287864,1708157452208,-500.0,0.00049315,60]
[314287865,1708157452217,-1515.85,0.00049315,60]
[314287866,1708157452226,-500.0,0.00049315,7]
[314287867,1708157452237,-636.17,0.00049315,60]
[314287868,1708157452246,-1186.43,0.00049315,60]
[314287869,1708157452255,-500.0,0.00049315,60]
[314287870,1708157452264,-500.0,0.00049315,60]
[314287871,1708157452274,-500.0,0.00049315,60]
[314287872,1708157452283,-521.75057454,0.00049315,60]
[314287873,1708157452292,-554.40912725,0.00049315,60]
[314287874,1708157452305,-528.14590144,0.00049315,60]
[314287875,1708157452323,-500.0,0.00049315,60]
[314287876,1708157452339,-500.0,0.00049315,60]
[314287877,1708157452353,-500.0,0.00049315,60]
[314287878,1708157452369,-3147.75,0.00049315,60]
[314287879,1708157452386,-500.0,0.00049315,60]
[314287880,1708157452401,-515.27704809,0.00049315,60]
[314287881,1708157452415,-518.56180245,0.00049315,60]
[314287882,1708157452429,-500.0,0.00049315,60]
[314287883,1708157452444,-500.0,0.00049315,60]
[314287884,1708157452459,-500.0,0.00049315,60]
[314287885,1708157452471,-657.81,0.00049315,60]
[314287886,1708157452489,-500.0,0.00049315,60]
[314287887,1708157452504,-569.8,0.00049315,60]
[314287888,1708157452519,-559.60669253,0.00049315,60]
[314287889,1708157452534,-500.0,0.00049315,60]
[314287890,1708157452549,-500.0,0.00049315,60]
[314287891,1708157452567,-5184.93,0.00049315,60]
[314287892,1708157452580,-612.2897952,0.00049315,60]
[314287893,1708157452591,-500.0,0.00049315,60]
[314287894,1708157452605,-500.0,0.00049315,60]
[314287895,1708157452618,-500.0,0.00049315,60]
[314287896,1708157452632,-500.0,0.00049315,60]
[314287897,1708157452644,-500.0,0.00049315,60]
[314287898,1708157452656,-458.57882539,0.00049315,60]
[314287899,1708157452669,-556.89,0.00049315,60]
[314287900,1708157452682,-1446.13,0.00049315,60]
[314287901,1708157452695,-302.05426186,0.00049315,60]
[314287902,1708157452708,-229.83610695,0.00049315,60]
[314287903,1708157452720,-500.0,0.00049315,60]
[314287904,1708157452734,-521.3641745,0.00049315,60]
[314287905,1708157452746,-500.0,0.00049315,60]
[314287906,1708157452758,-500.0,0.00049315,60]
[314287907,1708157452771,-500.0,0.00049315,60]
[314287908,1708157452783,-500.0,0.00049315,60]
[314287909,1708157452795,-500.0,0.00049315,60]
[314287910,1708157452807,-500.0,0.00049315,60]
[314287911,1708157452820,-312.20773967,0.00049315,60]
[314287912,1708157452832,-500.0,0.00049315,60]
[314287913,1708157452844,-500.0,0.00049315,60]
[314287914,1708157452857,-500.0,0.00049315,60]
[314287915,1708157452869,-500.0,0.00049315,60]
[314287916,1708157452882,-500.0,0.00049315,60]
[314287917,1708157452894,-500.0,0.00049315,60]
[314287918,1708157452907,-500.0,0.00049315,60]
[314287919,1708157452919,-500.0,0.00049315,60]
[314287920,1708157452933,-500.0,0.00049315,60]
[314287921,1708157452945,-584.92010592,0.00049315,60]
[314287922,1708157452957,-500.0,0.00049315,60]
[314287923,1708157452971,-500.0,0.00049315,60]
[314287924,1708157452984,-500.0,0.00049315,60]
[314287925,1708157452998,-500.0,0.00049315,60]
[314287926,1708157453011,-603.73881311,0.00049315,60]
[314287927,1708157453024,-513.5759273,0.00049315,60]
[314287928,1708157453036,-500.0,0.00049315,60]
[314287929,1708157453049,-500.0,0.00049315,60]
[314287930,1708157453061,-500.0,0.00049315,60]
[314287931,1708157453073,-500.0,0.00049315,60]
[314287932,1708157453086,-500.0,0.00049315,60]
[314287933,1708157453098,-500.0,0.00049315,60]
[314287934,1708157453111,-500.0,0.00049315,60]
[314287935,1708157453123,-1868.35,0.00049315,60]
[314287936,1708157453137,-500.0,0.00049315,60]
[314287937,1708157453149,-1210.8,0.00049315,14]
[314287938,1708157453162,-643.5,0.00049315,60]
[314287939,1708157453176,-500.0,0.00049315,60]
[314287940,1708157453189,-1614.2,0.00049315,60]
[314287941,1708157453201,-3236.35,0.00049315,60]
[314287942,1708157453215,-577.62913496,0.00049315,60]
[314287943,1708157453227,-179.38634,0.00049315,60]
[314287944,1708157453241,-500.0,0.00049315,60]
[314287945,1708157453254,-502.24,0.00049315,60]
[314287946,1708157453266,-500.0,0.00049315,60]
[314287947,1708157453281,-557.08115132,0.00049315,60]
[314287948,1708157453293,-500.0,0.00049315,60]
[314287949,1708157453306,-500.0,0.00049315,60]
[314287950,1708157453319,-500.0,0.00049315,60]
[314287951,1708157453333,-500.0,0.00049315,60]
[314287952,1708157453347,-804.5,0.00049315,60]
[314287953,1708157453361,-500.0,0.00049315,60]
[314287954,1708157453370,-500.0,0.00049315,60]
[314287955,1708157453380,-910.43,0.00049315,60]
[314287956,1708157453389,-500.0,0.00049315,60]
[314287957,1708157453398,-500.0,0.00049315,60]
[314287958,1708157453408,-500.0,0.00049315,60]
[314287959,1708157453417,-500.0,0.00049315,60]
[314287960,1708157453596,-500.0,0.00049315,60]
[314287961,1708157453607,-532.93,0.00049315,60]
[314287962,1708157453617,-500.0,0.00049315,60]
[314287963,1708157453626,-500.0,0.00049315,60]
[314287964,1708157453635,-500.0,0.00049315,60]
[314287965,1708157453644,-500.0,0.00049315,60]
[314287966,1708157453653,-500.0,0.00049315,60]
[314287967,1708157453662,-500.0,0.00049315,60]
[314287968,1708157453672,-500.0,0.00049315,60]
[314287969,1708157453681,-500.0,0.00049315,60]
[314287970,1708157453690,-500.0,0.00049315,60]
[314287971,1708157453699,-2150.49,0.00049315,60]
[314287972,1708157453708,-424.19534597,0.00049315,60]
[314287973,1708157453717,-500.0,0.00049315,60]
[314287974,1708157453727,-958.24,0.00049315,60]
[314287975,1708157453735,-1655.71,0.00049315,60]
[314287976,1708157453744,-500.0,0.00049315,60]
[314287977,1708157453754,-500.0,0.00049315,60]
[314287978,1708157453763,-589.67267449,0.00049315,60]
[314287979,1708157453772,-500.0,0.00049315,60]
[314287980,1708157453781,-509.69932775,0.00049315,60]
[314287981,1708157453790,-543.92,0.00049315,60]
[314287982,1708157453799,-575.31813835,0.00049315,60]
[314287983,1708157453808,-240.20627516,0.00049315,60]
[314287984,1708157453817,-500.0,0.00049315,60]
[314287985,1708157453826,-707.56,0.00049315,60]
[314287986,1708157453835,-500.0,0.00049315,60]
[314287987,1708157453844,-500.0,0.00049315,60]
[314287988,1708157453854,-1947.64,0.00049315,60]
[314287989,1708157453863,-500.0,0.00049315,60]
[314287990,1708157453872,-500.0,0.00049315,60]
[314287991,1708157453882,-1182.25,0.00049315,60]
[314287992,1708157453891,-1000.0,0.00049315,7]
[314287993,1708157453901,-1133.06,0.00049315,60]
[314287994,1708157453910,-713.76,0.00049315,60]
[314287995,1708157453919,-538.14805902,0.00049315,60]
[314287996,1708157453929,-500.0,0.00049315,60]
[314287997,1708157453940,-500.0,0.00049315,60]
[314287998,1708157453950,-500.0,0.00049315,60]
[314287999,1708157453959,-500.0,0.00049315,60]
[314288000,1708157453968,-577.85,0.00049315,60]
[314288001,1708157453978,-500.0,0.00049315,60]
[314288002,1708157453988,-500.0,0.00049315,60]
[314288003,1708157453998,-500.0,0.00049315,60]
[314288004,1708157454008,-1166.8,0.00049315,60]
[314288005,1708157454017,-500.0,0.00049315,60]
[314288006,1708157454027,-500.0,0.00049315,60]
[314288007,1708157454037,-500.0,0.00049315,60]
[314288008,1708157454046,-500.0,0.00049315,60]
[314288009,1708157454055,-464.64071643,0.00049315,2]
[314288010,1708157454064,-554.4,0.00049315,60]
[314288011,1708157454074,-501.63413972,0.00049315,2]
[314288012,1708157454083,-500.0,0.00049315,60]
[314288013,1708157454092,-500.0,0.00049315,60]
[314288014,1708157454101,-500.0,0.00049315,60]
[314288015,1708157454111,-590.34257876,0.00049315,60]
[314288016,1708157454121,-526.17916288,0.00049315,60]
[314288017,1708157454130,-569.35,0.00049315,60]
[314288018,1708157454139,-500.0,0.00049315,2]
[314288019,1708157454150,-500.0,0.00049315,60]
[314288020,1708157454159,-437.39616331,0.00049315,60]
[314288021,1708157454168,-500.0,0.00049315,60]
[314288022,1708157454178,-739.49,0.00049315,60]
[314288023,1708157454188,-540.71057429,0.00049315,60]
[314288024,1708157454197,-504.72631277,0.00049315,5]
[314288025,1708157454207,-500.0,0.00049315,60]
[314288026,1708157454216,-500.0,0.00049315,60]
[314288027,1708157454226,-500.0,0.00049315,2]
[314288028,1708157454235,-500.0,0.00049315,60]
[314288029,1708157454244,-532.02999864,0.00049315,60]
[314288030,1708157454253,-500.0,0.00049315,60]
[314288031,1708157454263,-500.0,0.00049315,60]
[314288032,1708157454273,-509.19477868,0.00049315,60]
[314288033,1708157454283,-500.0,0.00049315,60]
[314288034,1708157454293,-1000.0,0.00049315,2]
[314288035,1708157454302,-11780.69,0.00049315,60]
[314288036,1708157454311,-500.0,0.00049315,2]
[314288037,1708157454321,-500.0,0.00049315,2]
[314288038,1708157454330,-636.2199776,0.00049315,2]
[314288039,1708157454340,-500.0,0.00049315,60]